bitfinex/quotes_ETHUSD_20251015
["timestamp","ask_amount","ask_price","bid_price","bid_amount"]
[1760526737489,0.0002,4126.4,4125.9,0.1113]
[1760526737675,0.0002,4126.4,4126.1,0.1208]
[1760526737877,0.0002,4126.4,4125.8,0.002]
[1760526737878,0.464,4126.3,4125.8,0.002]
[1760526738081,2.96545802,4126.4,4125.8,0.002]
[1760526738082,0.8069458,4126.2,4125.8,0.002]
[1760526738306,0.464,4126.2,4125.8,0.002]
[1760526738504,0.5848,4126.1,4125.8,0.002]
[1760526738735,0.464,4126.0,4125.8,0.002]
[1760526738911,0.2289,4125.9,4125.8,0.002]
[1760526739105,0.8137,4125.9,4125.8,0.002]
[1760526740517,0.1208,4125.9,4125.8,0.002]
[1760526740697,0.1108,4125.9,4125.8,0.002]
[1760526741231,0.5748,4125.9,4125.8,0.002]
[1760526742805,0.1108,4125.9,4125.8,0.002]
[1760526743228,0.5748,4125.9,4125.8,0.002]
[1760526744607,0.1108,4125.9,4125.8,0.002]
[1760526745710,0.5748,4125.9,4125.8,0.002]
[1760526746928,0.1108,4125.9,4125.8,0.002]
[1760526749045,0.1118,4125.9,4125.8,0.002]
[1760526749956,0.001,4125.9,4125.8,0.002]
[1760526752539,0.001,4125.9,4125.8,0.4372]
[1760526752744,0.001,4125.9,4125.8,0.8984458]
[1760526755280,0.001,4125.9,4125.8,0.1228]
[1760526755482,0.001,4125.9,4125.8,0.002]
[1760526758697,0.4567,4125.9,4125.8,0.002]
[1760526760002,0.4559,4125.9,4125.8,0.002]
[1760526761094,0.0002,4125.9,4125.8,0.002]
[1760526775096,1.0922,4125.9,4125.8,0.002]
[1760526777027,3.5422,4125.9,4125.8,0.002]
[1760526778393,3.95565,4125.9,4125.8,0.002]
[1760526778598,4.39635,4125.9,4125.8,0.002]
[1760526778793,4.71381434,4125.9,4125.8,0.002]
[1760526779426,4.39635,4125.9,4125.8,0.002]
[1760526779725,3.5422,4125.9,4125.8,0.002]
[1760526781208,1.0922,4125.9,4125.8,0.002]
[1760526781529,3.5422,4125.9,4125.8,0.002]
[1760526783739,1.092,4125.9,4125.8,0.002]
[1760526784400,1.092,4125.9,4125.8,0.4317]
[1760526784738,3.542,4125.9,4125.8,0.4317]
[1760526785409,1.092,4125.9,4125.8,0.002]
[1760526785720,3.542,4125.9,4125.8,4.33251099]
[1760526785922,3.542,4125.9,4125.8,4.76596209]
[1760526786230,3.542,4125.9,4125.8,0.9859511]
[1760526786407,3.542,4125.9,4125.8,0.5525]
[1760526787603,1.093,4125.9,4125.8,0.5525]
[1760526787810,3.542,4125.9,4125.8,0.5525]
[1760526790139,3.542,4125.9,4125.8,6.25251099]
[1760526791939,3.542,4125.9,4125.8,1.922]
[1760526792319,3.542,4125.9,4125.8,2.5532]
[1760526792719,3.542,4125.9,4125.8,2.1144]
[1760526793708,3.542,4125.9,4125.8,2.5532]
[1760526794042,3.542,4125.9,4125.8,6.33321099]
[1760526797746,1.093,4125.9,4125.8,6.33321099]
[1760526797944,3.542,4125.9,4125.8,6.33321099]
[1760526798169,3.542,4125.9,4125.8,6.96681099]
[1760526798373,3.542,4125.9,4125.8,7.69555445]
[1760526799875,1.093,4125.9,4125.8,7.69555445]
[1760526800041,0.0002,4126.4,4126.2,11.089813]
[1760526800380,0.001,4126.8,4126.7,0.6336]
[1760526800538,0.001,4126.8,4126.7,4.41361099]
[1760526800734,0.001,4126.8,4126.7,7.40577209]
[1760526801039,1.336,4126.8,4126.7,7.40577209]
[1760526801242,1.336,4126.8,4126.7,8.13433149]
[1760526801978,1.336,4126.8,4126.7,8.25513149]
[1760526803287,1.336,4126.8,4126.7,3.4027205]
[1760526803488,1.336,4126.8,4126.7,6.54937039]
[1760526806061,1.336,4126.8,4126.7,6.98817039]
[1760526806261,1.336,4126.8,4126.7,7.62177039]
[1760526807160,1.3352,4126.8,4126.7,7.62177039]
[1760526809567,1.3352,4126.8,4126.7,10.96586239]
[1760526809767,1.3352,4126.8,4126.7,12.06244863]
[1760526810620,1.3352,4126.8,4126.7,12.30044863]
[1760526811534,1.3352,4126.8,4126.7,13.06544863]
[1760526812033,1.3352,4126.8,4126.7,12.44744863]
[1760526812432,1.3352,4126.8,4126.7,8.71835663]
[1760526812738,1.3352,4126.8,4126.7,10.77842363]
[1760526813436,1.3352,4126.8,4126.7,10.86142363]
[1760526814529,1.3352,4126.8,4126.7,8.71835663]
[1760526815632,1.3352,4126.8,4126.7,8.27955663]
[1760526817620,1.3352,4126.8,4126.7,10.44084763]
[1760526818030,1.3352,4126.8,4126.7,10.87964763]
[1760526818613,1.3352,4126.8,4126.7,12.78582963]
[1760526818816,1.3352,4126.8,4126.7,12.29102963]
[1760526819618,1.3352,4126.8,4126.7,13.51173063]
[1760526819828,1.3352,4126.8,4126.7,12.37203063]
[1760526820028,1.3352,4126.8,4126.7,12.16194263]
[1760526820313,1.3352,4126.8,4126.7,8.27955663]
[1760526823654,1.3352,4126.8,4126.7,11.47744763]
[1760526825538,1.3352,4126.8,4126.7,10.91804563]
[1760526825738,1.3352,4126.8,4126.7,10.53604563]
[1760526826257,1.3352,4126.8,4126.7,8.27955663]
[1760526826423,1.3352,4126.8,4126.7,6.54937039]
[1760526826424,1.784,4126.8,4126.7,6.54937039]
[1760526826624,1.784,4126.8,4126.7,2.7693594]
[1760526827129,1.784,4126.8,4126.7,2.0408]
[1760526827459,1.091,4127.2,4126.7,2.0408]
[1760526827460,1.091,4127.2,4127.0,2.5536]
[1760526827634,1.091,4127.2,4127.1,0.95232]
[1760526828229,1.091,4127.2,4127.1,1.68082986]
[1760526828531,2.946,4127.2,4127.1,1.68082986]
[1760526829358,2.946,4127.2,4127.1,1.80375061]
[1760526830432,1.091,4127.2,4127.1,1.80375061]
[1760526830757,2.447,4127.2,4127.1,1.80375061]
[1760526830954,2.447,4127.2,4127.1,7.5037616]
[1760526831335,2.447,4127.2,4127.1,6.68375376]
[1760526831861,2.447,4127.2,4127.1,6.56083301]
[1760526837460,2.447,4127.2,4127.1,6.68163301]
[1760526837638,2.8922,4127.2,4127.1,6.04803301]
[1760526837841,2.8922,4127.2,4127.1,5.31952315]
[1760526838468,2.8922,4127.2,4127.1,1.92]
[1760526838671,2.8922,4127.2,4127.0,0.72855763]
[1760526838834,0.4452,4127.1,4127.0,0.72855763]
[1760526839163,0.4452,4127.1,4126.6,2.96000315]
[1760526839363,0.4452,4127.0,4126.7,1.92]
[1760526839759,0.2174,4126.8,4126.7,1.92]
[1760526840053,0.6626,4126.8,4126.7,1.92]
[1760526841384,0.6626,4126.8,4126.6,0.002]
[1760526841550,2.447,4126.7,4126.6,0.002]
[1760526841874,2.8922,4126.7,4126.6,0.002]
[1760526842077,2.8922,4126.7,4126.6,2.96200315]
[1760526842447,2.8922,4126.7,4126.6,0.002]
[1760526842648,3.20316,4126.7,4126.6,0.002]
[1760526853505,3.83676,4126.7,4126.6,0.002]
[1760526853717,6.178356,4126.7,4126.6,0.002]
[1760526853926,3.83676,4126.7,4126.6,0.002]
[1760526854085,1.38896,4126.7,4126.6,0.002]
[1760526855084,8.971488,4126.7,4126.6,0.002]
[1760526855317,11.419488,4126.7,4126.6,0.002]
[1760526855826,11.73695234,4126.7,4126.6,0.002]
[1760526856029,29.61659903,4126.7,4126.6,0.002]
[1760526856239,0.6336,4126.4,4126.3,0.002]
[1760526856532,17.01428415,4126.4,4126.3,0.002]
[1760526856699,17.85170475,4126.4,4126.3,0.002]
[1760526857100,24.79152575,4126.4,4126.3,0.002]
[1760526857499,26.71152575,4126.4,4126.3,0.002]
[1760526857704,27.02248575,4126.4,4126.3,0.002]
[1760526857908,22.93846675,4126.4,4126.3,0.002]
[1760526858095,9.10998375,4126.4,4126.3,0.002]
[1760526858300,25.50470275,4126.4,4126.3,0.002]
[1760526858830,18.82196075,4126.4,4126.3,0.002]
[1760526859241,24.58684609,4126.4,4126.3,0.002]
[1760526859396,27.54684924,4126.4,4126.2,0.002]
[1760526859603,33.34849074,4126.3,4126.2,0.002]
[1760526860139,33.80589074,4126.3,4126.2,0.002]
[1760526861115,3.80589074,4126.3,4126.2,0.002]
[1760526861311,33.80589074,4126.3,4126.2,0.002]
[1760526861548,29.75733574,4126.3,4126.2,0.002]
[1760526862037,21.34962574,4126.3,4126.2,0.002]
[1760526862239,19.84049574,4126.3,4126.2,0.002]
[1760526863348,17.96370974,4126.3,4126.2,0.002]
[1760526864219,20.32156874,4126.3,4126.2,0.002]
[1760526864650,19.00873374,4126.3,4126.2,0.002]
[1760526865149,20.42739474,4126.3,4126.2,0.002]
[1760526865445,20.82991174,4126.3,4126.2,0.002]
[1760526865650,21.20994806,4126.3,4126.2,0.002]
[1760526865846,16.84862106,4126.3,4126.2,0.002]
[1760526866022,13.54459372,4126.3,4126.2,0.002]
[1760526866223,14.79039072,4126.3,4126.2,0.002]
[1760526867352,16.47796172,4126.3,4126.2,0.002]
[1760526867723,15.12417272,4126.3,4126.2,0.002]
[1760526868053,14.82821972,4126.3,4126.2,0.002]
[1760526868435,22.21427472,4126.3,4126.2,0.002]
[1760526868751,22.01368172,4126.3,4126.2,0.002]
[1760526869326,5.73746587,4126.3,4126.2,0.002]
[1760526869651,11.84588055,4126.3,4126.2,0.002]
[1760526870361,11.35336455,4126.3,4126.2,0.002]
[1760526870570,11.81076455,4126.3,4126.2,0.002]
[1760526871462,17.00850755,4126.3,4126.2,0.002]
[1760526872345,23.54029455,4126.3,4126.2,0.002]
[1760526872659,20.38554355,4126.3,4126.2,0.002]
[1760526872864,17.40949955,4126.3,4126.2,0.002]
[1760526873335,18.67353855,4126.3,4126.2,0.002]
[1760526873537,0.6336,4126.0,4125.4,0.432623]
[1760526873874,7.32900315,4125.9,4125.4,0.432623]
[1760526874382,7.32900315,4125.9,4123.4,1.92]
[1760526874585,2.96000315,4125.6,4123.8,2.96000315]
[1760526874742,2.449,4125.5,4123.8,2.96000315]
[1760526874938,1.092,4125.4,4123.8,2.96000315]
[1760526875468,1.5694264,4125.4,4125.0,0.4326]
[1760526876453,1.5694264,4125.4,4123.8,2.96000315]
[1760526876652,1.092,4125.4,4125.3,0.4346]
[1760526876953,5.645365,4125.4,4125.3,0.002]
[1760526877157,4.079369,4125.4,4125.3,0.002]
[1760526877541,3.559907,4125.4,4125.3,0.002]
[1760526878093,3.956003,4125.4,4125.3,0.002]
[1760526879102,4.698581,4125.4,4125.3,0.002]
[1760526879997,14.499497,4125.4,4125.3,0.002]
[1760526880202,11.348689,4125.4,4125.3,0.002]
[1760526880893,9.230891,4125.4,4125.3,0.002]
[1760526881198,9.255186,4125.4,4125.3,0.002]
[1760526881807,7.699361,4125.4,4125.3,0.002]
[1760526882210,7.996253,4125.4,4125.3,0.002]
[1760526882803,7.220053,4125.4,4125.3,0.002]
[1760526883001,7.680253,4125.4,4125.3,0.002]
[1760526883205,6.374011,4125.4,4125.3,0.002]
[1760526884781,5.624011,4125.4,4125.3,0.002]
[1760526884983,1.092,4125.4,4125.3,0.002]
[1760526885482,1.092,4125.4,4125.3,0.4346]
[1760526891940,1.092,4125.4,4125.3,0.002]
[1760526892093,0.6336,4125.2,4124.5,0.002]
[1760526892296,23.7298793,4124.6,4124.5,0.002]
[1760526892522,28.43461767,4124.6,4124.5,0.002]
[1760526892821,25.61514752,4124.6,4124.5,0.002]
[1760526893195,27.89837552,4124.6,4124.5,0.002]
[1760526893396,28.93272393,4124.6,4124.5,0.002]
[1760526894223,10.02148993,4124.6,4124.5,0.002]
[1760526894404,32.01780393,4124.6,4124.5,0.002]
[1760526895137,34.20180393,4124.6,4124.5,0.002]
[1760526895299,37.19511793,4124.6,4124.5,0.002]
[1760526895613,32.59018293,4124.6,4124.5,0.002]
[1760526895812,29.71084593,4124.6,4124.5,0.002]
[1760526896017,28.93038593,4124.6,4124.5,0.002]
[1760526896418,24.87508193,4124.6,4124.5,0.002]
[1760526896649,23.93752556,4124.6,4124.5,0.002]
[1760526896828,23.01178156,4124.6,4124.5,0.002]
[1760526897328,26.85786856,4124.6,4124.5,0.002]
[1760526897905,24.70887856,4124.6,4124.5,0.002]
[1760526898121,19.76978556,4124.6,4124.5,0.002]
[1760526898335,14.51963756,4124.6,4124.5,0.002]
[1760526899238,12.77717856,4124.6,4124.5,0.002]
[1760526899531,13.14354256,4124.6,4124.5,0.002]
[1760526900512,15.36020456,4124.6,4124.5,0.002]
[1760526900712,13.53397656,4124.6,4124.5,0.002]
[1760526901142,13.53317656,4124.6,4124.5,0.002]
[1760526901546,15.79911556,4124.6,4124.5,0.002]
[1760526901746,13.31573356,4124.6,4124.5,0.002]
[1760526902543,16.11384656,4124.6,4124.5,0.002]
[1760526902744,15.81812656,4124.6,4124.5,0.002]
[1760526903242,14.51384656,4124.6,4124.5,0.002]
[1760526903446,14.05364656,4124.6,4124.5,0.002]
[1760526903756,2.9858864,4124.6,4124.5,0.002]
[1760526903916,4.369,4124.6,4124.5,0.002]
[1760526904111,2.449,4124.6,4124.5,0.4354]
[1760526904457,2.5698,4124.6,4124.5,0.4354]
[1760526904619,4.4898,4124.6,4124.5,0.4354]
[1760526904921,2.5698,4124.6,4124.5,0.4354]
[1760526905123,3.6618,4124.6,4124.5,0.4354]
[1760526906651,3.6618,4124.6,4124.5,0.002]
[1760526907547,5.5818,4124.6,4124.5,0.4354]
[1760526908673,5.461,4124.6,4124.5,0.4354]
[1760526909358,3.541,4124.6,4124.5,0.4354]
[1760526913262,3.541,4124.6,4124.5,0.002]
[1760526913784,3.541,4124.6,4124.5,0.4302]
[1760526915141,1.092,4124.6,4124.5,0.4302]
[1760526915336,3.541,4124.6,4124.5,0.4302]
[1760526917738,3.541,4124.6,4124.5,0.002]
[1760526917942,7.89346516,4124.6,4124.5,0.002]
[1760526918146,14.54338316,4124.6,4124.5,0.002]
[1760526918354,13.86917516,4124.6,4124.5,0.002]
[1760526918772,7.99806516,4124.6,4124.5,0.002]
[1760526918954,10.44706516,4124.6,4124.5,0.002]
[1760526919271,5.461,4124.6,4124.5,0.002]
[1760526919463,3.541,4124.6,4124.5,0.002]
[1760526920248,3.541,4124.6,4124.5,0.4302]
[1760526920447,3.541,4124.6,4124.5,0.551]
[1760526921176,3.541,4124.6,4124.5,0.1228]
[1760526921473,3.541,4124.6,4124.5,0.551]
[1760526922090,3.541,4124.6,4124.5,0.1228]
[1760526923505,3.8952,4124.6,4124.5,0.1228]
[1760526923788,6.2514,4124.6,4124.5,0.002]
[1760526923989,5.8152,4124.6,4124.5,0.002]
[1760526924184,6.2514,4124.6,4124.5,0.002]
[1760526924583,6.885,4124.6,4124.5,0.002]
[1760526924771,9.463909,4124.6,4124.5,0.002]
[1760526925710,7.014109,4124.6,4124.5,0.002]
[1760526925915,9.780034,4124.6,4124.5,0.002]
[1760526926067,6.600539,4124.6,4124.5,0.002]
[1760526926267,4.4352,4124.6,4124.5,0.002]
[1760526926870,6.8852,4124.6,4124.5,0.002]
[1760526927293,25.967365,4124.6,4124.5,0.002]
[1760526927499,23.143059,4124.6,4124.5,0.002]
[1760526928172,20.548219,4124.6,4124.5,0.002]
[1760526928374,29.895316,4124.6,4124.5,0.002]
[1760526928572,26.238481,4124.6,4124.5,0.002]
[1760526928875,16.883159,4124.6,4124.5,0.002]
[1760526929204,16.119928,4124.6,4124.5,0.002]
[1760526929404,15.20453,4124.6,4124.5,0.002]
[1760526930173,14.616212,4124.6,4124.5,0.002]
[1760526930370,6.9824681,4124.6,4124.5,0.002]
[1760526930584,6.449,4124.6,4124.5,0.002]
[1760526930784,12.071276,4124.6,4124.5,0.002]
[1760526931094,9.198276,4124.6,4124.5,0.002]
[1760526931292,9.025484,4124.6,4124.5,0.002]
[1760526931596,10.630484,4124.6,4124.5,0.002]
[1760526931798,6.8862,4124.6,4124.5,0.002]
[1760526932003,6.45,4124.6,4124.5,0.002]
[1760526932200,5.8164,4124.6,4124.5,0.002]
[1760526932400,5.463,4124.6,4124.5,0.002]
[1760526933597,6.0966,4124.6,4124.5,0.002]
[1760526933918,5.463,4124.6,4124.5,0.002]
[1760526937820,5.8992,4124.6,4124.5,0.002]
[1760526938399,17.039051,4124.6,4124.5,0.002]
[1760526938727,15.533725,4124.6,4124.5,0.002]
[1760526939494,21.6751122,4124.6,4124.5,0.002]
[1760526939932,12.7296882,4124.6,4124.5,0.002]
[1760526940136,12.3585522,4124.6,4124.5,0.002]
[1760526940338,12.1480532,4124.6,4124.5,0.002]
[1760526940545,12.6309682,4124.6,4124.5,0.002]
[1760526940907,8.8937822,4124.6,4124.5,0.002]
[1760526941123,9.3683822,4124.6,4124.5,0.002]
[1760526941331,6.4437822,4124.6,4124.5,0.002]
[1760526941531,6.4768102,4124.6,4124.5,0.002]
[1760526941953,6.9514102,4124.6,4124.5,0.002]
[1760526942248,6.5712,4124.6,4124.5,0.002]
[1760526942618,14.991511,4124.6,4124.5,0.002]
[1760526942804,6.0966,4124.6,4124.5,0.002]
[1760526943406,3.013,4124.6,4124.5,0.002]
[1760526943621,5.464,4124.6,4124.5,0.002]
[1760526944220,3.013,4124.6,4124.5,0.002]
[1760526944432,1.093,4124.6,4124.5,0.4354]
[1760526944743,3.545,4124.6,4124.5,0.5562]
[1760526945752,3.545,4124.6,4124.5,0.002]
[1760526946353,5.465,4124.6,4124.5,0.002]
[1760526947260,6.5732,4124.6,4124.5,0.002]
[1760526948125,12.632585,4124.6,4124.5,0.002]
[1760526948325,11.323585,4124.6,4124.5,0.002]
[1760526948526,9.864385,4124.6,4124.5,0.002]
[1760526949122,15.383437,4124.6,4124.5,0.002]
[1760526949326,12.282437,4124.6,4124.5,0.002]
[1760526949539,8.954385,4124.6,4124.5,0.002]
[1760526949739,6.5724,4124.6,4124.5,0.002]
[1760526949939,8.772432,4124.6,4124.5,0.002]
[1760526950161,10.15257,4124.6,4124.5,0.002]
[1760526950855,9.519571,4124.6,4124.5,0.002]
[1760526951234,9.871921,4124.6,4124.5,0.002]
[1760526952442,9.867799,4124.6,4124.5,0.002]
[1760526953467,13.345642,4124.6,4124.5,0.002]
[1760526953687,18.174395,4124.4,4124.0,0.002]
[1760526953863,0.6336,4123.8,4122.5,0.5455]
[1760526954045,11.911463,4123.9,4122.5,0.5455]
[1760526954046,3.56206516,4122.9,4122.5,0.5455]
[1760526954240,2.452,4122.8,4122.5,0.5455]
[1760526954440,2.452,4122.8,4122.6,0.4334]
[1760526954746,2.452,4122.8,4122.7,0.4334]
[1760526954962,3.544,4122.8,4122.7,0.4334]
[1760526960967,1.092,4122.8,4122.7,0.4334]
[1760526961152,3.544,4122.8,4122.7,0.4334]
[1760526962797,3.544,4122.8,4122.7,0.78490227]
[1760526963297,3.544,4122.8,4122.7,3.75442497]
[1760526964778,3.544,4122.8,4122.7,0.78490227]
[1760526965283,3.544,4122.8,4122.7,0.4334]
[1760526965982,1.092,4122.8,4122.7,3.4029227]
[1760526966178,3.543,4122.8,4122.7,3.4029227]
[1760526967267,3.543,4122.8,4122.7,0.4334]
[1760526967463,3.543,4122.8,4122.7,0.5542]
[1760526967788,3.543,4122.8,4122.7,1.10978227]
[1760526968682,3.543,4122.8,4122.7,0.67638227]
[1760526968994,3.543,4122.8,4122.7,0.5542]
[1760526969195,3.543,4122.8,4122.7,0.1208]
[1760526969818,4.0047,4122.8,4122.7,0.1208]
[1760526971912,1.5529,4122.8,4122.7,0.1208]
[1760526972982,4.0029,4122.8,4122.7,0.1208]
[1760526975530,3.542,4122.8,4122.7,0.1208]
[1760526975955,3.9888,4122.8,4122.7,0.1208]
[1760526978542,3.542,4122.8,4122.7,0.1208]
[1760526979148,3.9888,4122.8,4122.7,0.1208]
[1760526980538,3.542,4122.8,4122.7,0.1208]
[1760526980935,3.9888,4122.8,4122.7,0.1208]
[1760526981937,6.9583227,4122.8,4122.6,0.002]
[1760526982149,0.4468,4122.7,4122.6,0.002]
[1760526983738,3.542,4122.8,4122.6,0.002]
[1760526983972,3.4163227,4122.7,4122.6,0.002]
[1760526985642,3.4163227,4122.7,4122.2,0.11995716]
[1760526986040,0.4468,4122.6,4122.2,0.11995716]
[1760526986236,2.8978,4122.5,4122.2,0.11995716]
[1760526986660,0.4468,4122.4,4122.2,0.11995716]
[1760526987087,2.451,4122.5,4122.2,0.11995716]
[1760526987282,0.4468,4122.3,4122.2,0.11995716]
[1760526988784,2.451,4122.5,4122.2,0.11995716]
[1760526988984,2.9695227,4122.7,4122.2,0.11995716]
[1760526989162,2.451,4122.4,4122.2,0.11995716]
[1760526990858,2.8978,4122.4,4122.2,0.11995716]
[1760526992778,0.4468,4122.3,4122.2,0.11995716]
[1760526993689,3.7061027,4122.3,4122.1,0.002]
[1760526994067,0.1208,4122.2,4122.1,0.002]
[1760526994474,0.5676,4122.2,4122.1,0.002]
[1760526995389,0.5668,4122.2,4122.1,0.002]
[1760526997377,6.0899227,4122.2,4122.1,0.002]
[1760526997705,23.5907911,4122.2,4122.1,0.002]
[1760526997866,20.6459591,4122.2,4122.1,0.002]
[1760526998067,19.4084591,4122.2,4122.1,0.002]
[1760526998486,9.0357291,4122.2,4122.1,0.002]
[1760526998877,11.1340281,4122.2,4122.1,0.002]
[1760526999493,14.3416041,4122.2,4122.1,0.002]
[1760527000572,20.7662181,4122.2,4122.1,0.002]
[1760527000775,19.8502911,4122.2,4122.1,0.002]
[1760527001672,14.9845741,4122.2,4122.1,0.002]
[1760527001889,11.0780941,4122.2,4122.1,0.002]
[1760527002922,14.2784361,4122.2,4122.1,0.002]
[1760527003732,13.7062641,4122.2,4122.1,0.002]
[1760527004129,10.7367414,4122.2,4122.1,0.002]
[1760527004314,2.5536,4121.9,4121.0,0.00318829]
[1760527004516,5.1186227,4121.1,4121.0,0.00318829]
[1760527004708,7.5706227,4121.1,4121.0,0.00318829]
[1760527004904,8.0155227,4121.1,4121.0,0.00318829]
[1760527005107,11.3879147,4121.1,4121.0,0.00318829]
[1760527005338,10.6220827,4121.1,4121.0,0.00318829]
[1760527005534,11.1178891,4121.1,4121.0,0.00318829]
[1760527005694,15.8867161,4121.1,4121.0,0.00318829]
[1760527006039,10.6384911,4121.1,4121.0,0.00318829]
[1760527006224,1.92,4121.0,4119.6,0.6]
[1760527006426,8.6643917,4120.5,4119.6,0.6]
[1760527006722,10.7170737,4120.5,4119.6,0.6]
[1760527006902,2.5536,4120.4,4119.6,0.6]
[1760527007108,2.9695227,4119.7,4119.6,0.6]
[1760527007308,17.7782964,4119.7,4119.6,0.6]
[1760527007525,14.8087737,4119.7,4119.6,0.6]
[1760527007826,8.9313291,4119.7,4119.6,0.6]
[1760527008035,9.3762291,4119.7,4119.6,0.6]
[1760527008395,12.4316654,4119.7,4119.6,0.6]
[1760527008603,15.4011881,4119.7,4119.6,0.6]
[1760527009296,19.4840668,4119.7,4119.6,0.6]
[1760527009703,16.5145441,4119.7,4119.6,0.6]
[1760527009903,8.9313291,4119.7,4119.6,0.6]
[1760527010105,20.2856528,4119.7,4119.6,0.6]
[1760527010309,12.2418171,4119.7,4119.6,0.6]
[1760527010514,11.8168941,4119.7,4119.6,0.6]
[1760527010931,9.3762291,4119.7,4119.6,0.6]
[1760527011104,8.9313291,4119.7,4119.6,0.6]
[1760527011304,11.0912721,4119.7,4119.6,0.6]
[1760527011834,11.5361721,4119.7,4119.6,0.6]
[1760527012334,9.3762291,4119.7,4119.6,0.6]
[1760527012642,31.6397808,4119.7,4119.6,0.6]
[1760527012939,31.6397808,4119.7,4117.7,2.80819559]
[1760527012940,0.6336,4119.0,4117.7,2.80819559]
[1760527013165,0.6336,4119.0,4115.9,0.1097]
[1760527013166,11.850815,4117.7,4116.1,0.1097]
[1760527013368,11.850815,4117.7,4115.2,0.1097]
[1760527013369,16.519657,4116.8,4115.2,0.1097]
[1760527013531,16.519657,4116.8,4114.0,0.1129]
[1760527013532,30.6336,4116.5,4114.0,0.1129]
[1760527013735,2.9695227,4115.0,4114.0,0.1129]
[1760527013933,2.468,4115.0,4114.9,3.90782259]
[1760527014277,2.469,4115.0,4114.9,3.47362259]
[1760527014430,2.469,4115.0,4114.9,4.31518485]
[1760527014626,0.1208,4115.4,4114.9,3.88098485]
[1760527014843,2.472,4115.3,4114.9,3.88098485]
[1760527015067,1.093,4115.2,4115.0,0.6458]
[1760527015269,4.0625227,4115.2,4115.0,0.2116]
[1760527015476,2.473,4115.1,4115.0,0.63293849]
[1760527015673,1.093,4115.2,4115.0,0.2116]
[1760527015856,2.473,4115.1,4115.0,0.2116]
[1760527016033,2.473,4115.1,4114.9,3.47362259]
[1760527016243,0.4347,4115.0,4114.9,3.47362259]
[1760527016436,2.3547,4115.0,4114.9,3.47362259]
[1760527016672,13.151517,4115.0,4114.9,3.47362259]
[1760527016912,7.49519,4115.0,4114.9,3.47362259]
[1760527017334,14.63872613,4115.0,4114.9,3.47362259]
[1760527017534,17.74932613,4115.0,4114.9,3.47362259]
[1760527017764,34.13190713,4115.0,4114.9,3.47362259]
[1760527017964,14.78096713,4115.0,4114.9,2.74426169]
[1760527018142,14.71350913,4115.0,4114.9,2.74426169]
[1760527018343,15.51486313,4115.0,4114.9,2.74426169]
[1760527018537,5.817727,4115.0,4114.9,2.74426169]
[1760527018736,6.327075,4115.0,4114.9,2.74426169]
[1760527019249,8.530669,4115.0,4114.9,2.74426169]
[1760527019453,5.255357,4115.0,4114.9,2.74426169]
[1760527019664,0.2196,4115.9,4114.9,2.74426169]
[1760527019867,2.485,4115.8,4114.9,5.09926169]
[1760527020164,2.485,4115.7,4115.0,0.50992617]
[1760527020352,0.38104636,4116.7,4115.1,0.6466]
[1760527020695,4.348056,4116.5,4115.0,0.50992617]
[1760527020862,21.495106,4116.3,4114.9,2.74426169]
[1760527021041,1.92,4116.0,4114.9,2.74426169]
[1760527021248,2.488,4116.2,4115.0,0.435]
[1760527021463,6.929816,4116.1,4114.9,2.74426169]
[1760527021663,6.929816,4116.1,4114.9,2.37389298]
[1760527021664,18.31500913,4115.0,4114.9,2.37389298]
[1760527021882,21.87530913,4115.0,4114.9,2.37389298]
[1760527022034,4.412,4115.0,4114.9,2.37389298]
[1760527022231,6.83659,4115.0,4114.9,2.37389298]
[1760527022430,13.607445,4115.0,4114.9,2.37389298]
[1760527022646,4.412,4115.0,4114.9,2.37389298]
[1760527022831,8.437214,4115.0,4114.9,2.37389298]
[1760527023060,2.492,4115.0,4114.9,2.37389298]
[1760527023568,2.492,4115.0,4114.9,2.80889298]
[1760527023750,2.492,4115.0,4114.9,3.10628228]
[1760527024335,2.367,4115.0,4114.9,3.10628228]
[1760527024535,2.498,4115.0,4114.9,3.10628228]
[1760527024979,21.64762313,4115.0,4114.9,2.15129298]
[1760527025264,9.636818,4115.0,4114.9,2.15129298]
[1760527025642,8.647397,4115.0,4114.9,2.15129298]
[1760527025841,8.312142,4115.0,4114.9,2.15129298]
[1760527026053,14.338447,4115.0,4114.9,2.15129298]
[1760527026253,13.244447,4115.0,4114.9,1.42101772]
[1760527026433,13.62554306,4115.0,4114.9,1.42101772]
[1760527026634,13.62554306,4115.0,4114.9,0.69074246]
[1760527027070,13.62554306,4115.0,4114.6,0.5624672]
[1760527027071,2.5536,4114.7,4114.6,0.5624672]
[1760527027259,32.5536,4114.7,4114.6,0.5624672]
[1760527027448,32.5536,4114.7,4112.9,0.1097]
[1760527027449,2.5536,4114.5,4112.9,0.1097]
[1760527027656,2.5536,4114.1,4112.6,0.1097]
[1760527027970,0.2196,4113.1,4112.1,0.1097]
[1760527028216,7.357984,4113.1,4113.0,0.26972474]
[1760527028478,7.991584,4113.1,4113.0,0.25082474]
[1760527028771,0.6336,4112.6,4110.4,0.1326]
[1760527028960,0.6336,4112.6,4112.2,2.20877433]
[1760527028961,17.850479,4112.3,4112.2,2.20877433]